bitfinex-derivatives/quotes_SOLF0:USTF0_20250318
["timestamp","ask_amount","ask_price","bid_price","bid_amount"]
[1742328811234,48.778137,124.04,124.02,8.11994338]
[1742328811831,8.064,124.03,124.02,0.05544338]
[1742328812228,40.714537,124.04,124.02,8.12004338]
[1742328812429,40.714537,124.04,124.02,0.05544338]
[1742328812628,48.778437,124.04,124.02,0.05544338]
[1742328813431,8.064,124.03,124.02,0.05544338]
[1742328821833,19.458537,124.03,124.02,0.05544338]
[1742328822034,8.0659,124.0,123.98,266.1]
[1742328822636,8.0659,124.0,123.98,274.1669]
[1742328823239,8.12593354,124.0,123.98,274.22003981]
[1742328823739,8.0666,123.99,123.98,266.15313981]
[1742328823939,48.781137,123.99,123.98,0.05313981]
[1742328825837,8.0683,123.97,123.94,274.1495]
[1742328826042,48.782837,123.97,123.94,274.1495]
[1742328826642,48.782837,123.97,123.95,8.0691]
[1742328827040,48.83855792,123.97,123.95,8.0691]
[1742328827239,11.394537,123.96,123.93,11.1444368]
[1742328827439,40.714537,123.95,123.91,15.546537]
[1742328827841,0.05243773,123.94,123.91,15.546537]
[1742328828334,0.05243773,123.94,123.93,8.0705]
[1742328829031,0.05243773,123.94,123.92,8.0708]
[1742328829542,0.05243773,123.94,123.91,15.546537]
[1742328830143,0.05243773,123.94,123.92,8.0705]
[1742328830544,0.05243773,123.94,123.91,15.546537]
[1742328832245,0.05243773,123.94,123.93,8.0705]
[1742328841153,11.44697473,123.94,123.9,266.1]
[1742328841360,40.714537,123.93,123.9,266.1]
[1742328841561,40.714537,123.93,123.91,8.0714]
[1742328841757,29.32,123.93,123.9,266.1]
[1742328841961,0.05243773,123.94,123.92,11.394537]
[1742328842160,0.05243773,123.94,123.93,8.0705]
[1742328843567,0.05243773,123.94,123.93,19.465037]
[1742328845562,0.05243773,123.94,123.93,48.785037]
[1742328849663,3.773e-05,123.94,123.93,48.785037]
[1742328858470,3.773e-05,123.94,123.93,37.3905]
[1742328864968,3.773e-05,123.94,123.93,8.0705]
[1742328865177,3.773e-05,123.94,123.92,0.05636953]
[1742328865368,11.394537,123.93,123.92,0.05636953]
[1742328865566,40.694537,123.93,123.92,0.05636953]
[1742328867670,40.694537,123.93,123.92,8.12746953]
[1742328868172,29.3,123.93,123.92,8.12746953]
[1742328869180,29.3,123.93,123.92,0.05636953]
[1742328869880,29.3,123.93,123.92,8.12746953]
[1742328872674,3.773e-05,123.94,123.93,8.0705]
[1742328880183,3.773e-05,123.94,123.87,44.49629871]
[1742328880184,19.45457473,123.94,123.87,44.49629871]
[1742328880489,11.394537,123.9,123.87,44.49629871]
[1742328880785,40.694537,123.9,123.87,44.49629871]
[1742328881283,29.3,123.9,123.87,44.49629871]
[1742328881587,29.35105566,123.9,123.87,44.49629871]
[1742328882684,29.35105566,123.9,123.86,241.34036614]
[1742328882890,29.35105566,123.9,123.86,11.394537]
[1742328883291,37.42355566,123.9,123.86,11.394537]
[1742328883990,48.81809266,123.9,123.85,285.709837]
[1742328885287,8.0733,123.89,123.85,274.3153]
[1742328885593,40.74559266,123.9,123.86,8.075]
[1742328885891,48.81829266,123.9,123.86,8.075]
[1742328887193,37.42375566,123.9,123.86,8.075]
[1742328887693,37.42375566,123.9,123.87,8.0744]
[1742328890995,8.12375566,123.9,123.87,8.0744]
[1742328891190,8.0732,123.89,123.86,8.0747]
[1742328891890,11.394537,123.89,123.85,266.24]
[1742328892095,11.394537,123.88,123.85,266.24]
[1742328892394,40.694537,123.88,123.85,266.24]
[1742328892595,48.768837,123.88,123.85,274.3156]
[1742328892992,40.694537,123.88,123.85,266.24]
[1742328893191,8.0748,123.87,123.85,266.24]
[1742328893591,8.13452342,123.87,123.85,266.24]
[1742328894694,8.075,123.86,123.85,266.24]
[1742328895097,8.075,123.86,123.82,40.694537]
[1742328895793,19.52896042,123.87,123.82,11.394537]
[1742328896301,11.45426042,123.87,123.84,8.0758]
[1742328898602,11.45426042,123.87,123.85,8.0757]
[1742328899701,19.52866042,123.87,123.85,8.0757]
[1742328900104,11.45426042,123.87,123.85,8.0757]
[1742328901902,11.394537,123.86,123.81,277.734537]
[1742328902109,11.394537,123.85,123.81,266.34]
[1742328902304,11.394537,123.85,123.83,8.0766]
[1742328902499,0.05192632,123.84,123.83,8.0766]
[1742328903200,11.44646332,123.84,123.82,8.0773]
[1742328903398,40.74646332,123.84,123.82,8.0773]
[1742328903598,40.74646332,123.84,123.81,266.34]
[1742328903901,40.74646332,123.84,123.81,274.418]
[1742328904300,11.394537,123.83,123.81,274.418]
[1742328904502,11.394537,123.82,123.81,266.34]
[1742328905007,29.35192632,123.84,123.8,11.394537]
[1742328905208,29.3,123.84,123.81,11.394537]
[1742328905409,0.05709947,123.83,123.81,11.394537]
[1742328905710,0.05709947,123.83,123.82,8.0776]
[1742328909516,0.05709947,123.83,123.82,19.472137]
[1742328910310,42.886137,123.89,123.88,8.0737]
[1742328910514,40.694537,123.89,123.88,8.0737]
[1742328911715,11.394537,123.89,123.88,8.0737]
[1742328912917,11.394537,123.89,123.87,0.051013]
[1742328913117,40.694537,123.88,123.87,0.051013]
[1742328913713,48.768237,123.88,123.87,0.051013]
[1742328918416,8.0757,123.85,123.8,2.1778]
[1742328918720,11.394537,123.84,123.8,2.1778]
[1742328918921,19.471137,123.84,123.82,8.0773]
[1742328919619,19.52554028,123.84,123.82,8.09937644]
[1742328920723,0.05440328,123.84,123.83,8.077]
[1742328921023,0.05440328,123.84,123.83,19.471537]
[1742328921711,3.28e-06,123.84,123.83,19.471537]
[1742328922325,3.28e-06,123.84,123.83,8.077]
[1742328929830,3.28e-06,123.84,123.83,19.471537]
[1742328931132,3.28e-06,123.84,123.83,8.077]
[1742328931530,29.28000328,123.84,123.83,8.077]
[1742328933533,3.28e-06,123.84,123.83,8.077]
[1742328936041,3.28e-06,123.84,123.83,8.077]
[1742328938332,29.28,123.89,123.88,8.0737]
[1742328938539,29.28,123.89,123.85,11.394537]
[1742328939440,0.05357012,123.88,123.87,8.0741]
[1742328939641,0.05357012,123.88,123.86,0.06092284]
[1742328941239,8.12737012,123.88,123.86,0.06092284]
[1742328942844,0.05357012,123.88,123.86,8.13592284]
[1742328945247,11.44810712,123.88,123.86,0.06092284]
[1742328945440,29.28,123.87,123.86,0.06092284]
[1742328946140,8.0752,123.86,123.84,8.0761]
[1742328946337,19.469737,123.86,123.84,8.0761]
[1742328946740,8.076,123.85,123.83,274.4969]
[1742328947338,8.13467057,123.85,123.83,274.4969]
[1742328948746,37.41467057,123.85,123.83,8.0769]
[1742328949146,29.33867057,123.85,123.81,11.394537]
[1742328950141,29.33867057,123.85,123.8,42.852337]
[1742328950337,40.73320757,123.85,123.8,42.852337]
[1742328951037,8.0763,123.84,123.82,8.0773]
[1742328951452,8.0773,123.83,123.81,8.078]
[1742328951748,40.73320757,123.85,123.81,8.078]
[1742328951953,11.394537,123.84,123.81,8.078]
[1742328952945,19.471237,123.84,123.82,8.0776]
[1742328953438,8.077,123.83,123.81,8.0781]
[1742328953638,11.394537,123.84,123.81,8.0781]
[1742328954148,19.471237,123.84,123.82,8.0775]
[1742328955156,48.80930757,123.85,123.83,8.077]
[1742328955453,29.33867057,123.85,123.82,11.394537]
[1742328955846,0.05867057,123.85,123.82,11.394537]
[1742328956248,0.05867057,123.85,123.84,8.0763]
[1742328966153,0.05867057,123.85,123.83,8.0766]
[1742328966352,11.45320757,123.85,123.8,42.827437]
[1742328966555,29.28,123.84,123.8,11.394537]
[1742328966853,29.28,123.84,123.79,266.42]
[1742328967059,8.0779,123.82,123.79,266.42]
[1742328967252,11.394537,123.83,123.79,266.42]
[1742328967455,0.05089038,123.82,123.8,8.0786]
[1742328967654,8.12859038,123.82,123.8,8.0786]
[1742328971960,37.40859038,123.82,123.8,8.0786]
[1742328972161,11.394537,123.81,123.76,13.467937]
[1742328972362,11.394537,123.81,123.76,11.394537]
[1742328972558,37.3593,123.8,123.77,8.0803]
[1742328972758,40.674537,123.8,123.77,8.0803]
[1742328973161,48.753937,123.8,123.77,8.0803]
[1742328975063,40.674537,123.8,123.78,8.0801]
[1742328975257,29.28,123.8,123.78,8.0801]
[1742328975457,29.33976819,123.8,123.78,8.0801]
[1742328976162,29.33976819,123.8,123.76,11.394537]
[1742328976662,29.33976819,123.8,123.78,8.08]
[1742328977061,29.33976819,123.8,123.78,11.394537]
[1742328977258,0.05976819,123.8,123.78,11.394537]
[1742328977664,0.05976819,123.8,123.79,8.0796]
[1742328983275,0.05976819,123.8,123.78,8.08]
[1742328983474,37.39896819,123.8,123.78,8.08]
[1742328985976,29.31976819,123.8,123.75,307.134537]
[1742328986277,29.31976819,123.8,123.76,11.394537]
[1742328986577,29.31976819,123.8,123.78,8.0796]
[1742328987176,11.394537,123.79,123.77,8.0807]
[1742328987476,11.394537,123.79,123.75,266.48]
[1742328987880,11.394537,123.79,123.76,8.0813]
[1742328987881,8.0803,123.78,123.76,8.0813]
[1742328988478,19.474437,123.79,123.77,8.0809]
[1742328988678,11.394537,123.79,123.75,266.48]
[1742328989076,8.0805,123.78,123.76,8.0811]
[1742328989276,37.3405,123.78,123.76,8.0811]
[1742328992380,48.735037,123.78,123.76,8.0811]
[1742328994089,8.0809,123.77,123.76,8.0811]
[1742328994387,40.654537,123.78,123.72,40.654537]
[1742328994587,8.0813,123.77,123.72,40.654537]
[1742328994786,0.06018267,123.76,123.74,8.0825]
[1742328995787,0.06018267,123.76,123.72,40.654537]
[1742328995788,0.06018267,123.76,123.75,8.0822]
[1742328996187,8.14178267,123.76,123.71,279.983237]
[1742328996383,8.14178267,123.76,123.71,309.243237]
[1742328996690,0.06018267,123.76,123.71,309.243237]
[1742328996988,0.06018267,123.76,123.74,8.0823]
[1742328997385,0.06018267,123.76,123.72,11.394537]
[1742328997583,0.06018267,123.76,123.74,8.0824]
[1742328997784,0.06018267,123.76,123.72,11.394537]
[1742328998184,0.06018267,123.76,123.75,8.0822]
[1742328999487,0.06018267,123.76,123.74,8.0826]
[1742329000987,8.14188267,123.76,123.74,8.0826]
[1742329001391,0.06018267,123.76,123.74,8.0826]
[1742329002993,0.06018267,123.76,123.72,11.394537]
[1742329004398,0.06018267,123.76,123.74,8.0824]
[1742329004897,37.40208267,123.76,123.72,11.394537]
[1742329005094,37.40208267,123.76,123.73,8.0834]
[1742329005294,29.32018267,123.76,123.73,8.0834]
[1742329005695,29.32018267,123.76,123.71,309.243237]
[1742329005696,8.0822,123.75,123.72,8.0839]
[1742329005898,8.0822,123.75,123.71,309.243237]
[1742329006096,40.71471967,123.76,123.71,309.243237]
[1742329006499,29.32018267,123.76,123.72,11.394537]
[1742329007295,29.32018267,123.76,123.75,8.0822]
[1742329008105,29.32018267,123.76,123.74,8.0825]
[1742329010006,29.32018267,123.76,123.75,8.0822]
[1742329010907,0.06018267,123.76,123.75,8.0822]
[1742329011108,0.06018267,123.76,123.75,19.476737]
[1742329015210,0.06018267,123.76,123.75,8.0822]
[1742329018606,11.45471967,123.76,123.71,29.09489565]
[1742329018812,11.394537,123.74,123.71,11.1444368]
[1742329019014,29.26,123.73,123.71,11.1444368]
[1742329019208,37.3437,123.73,123.71,11.1444368]
[1742329019402,37.40048612,123.73,123.7,44.49629871]
[1742329020208,29.31678612,123.73,123.7,44.49629871]
[1742329020815,37.40058612,123.73,123.7,44.49629871]
[1742329022715,37.40058612,123.73,123.69,8.0856]
[1742329023320,11.394537,123.7,123.65,62.46980156]
[1742329023511,40.654537,123.7,123.65,44.49629871]
[1742329023714,0.05316125,123.69,123.65,44.49629871]
[1742329023911,48.741637,123.68,123.65,44.49629871]
[1742329024112,40.654537,123.68,123.65,44.49629871]
[1742329025113,40.654537,123.68,123.65,52.58469871]
[1742329025315,40.654537,123.68,123.65,44.49629871]
[1742329025515,40.654537,123.68,123.66,8.0881]
[1742329025712,29.26,123.68,123.66,8.0881]
[1742329027019,29.26,123.68,123.67,8.0874]
[1742329027418,0.05316125,123.69,123.67,8.0874]
[1742329029615,0.05316125,123.69,123.65,29.26]
[1742329030614,0.05316125,123.69,123.67,8.0871]
[1742329031918,0.05316125,123.69,123.65,29.26]
[1742329033421,0.05316125,123.69,123.68,8.0868]
[1742329035526,6.125e-05,123.69,123.68,19.481337]
[1742329044830,6.125e-05,123.69,123.68,286.221337]
[1742329047630,6.125e-05,123.69,123.68,274.8268]
[1742329049335,6.125e-05,123.69,123.68,286.221337]
[1742329055443,6.125e-05,123.69,123.68,274.8268]
[1742329057445,11.39459825,123.69,123.67,8.14698705]
[1742329057645,11.394537,123.68,123.67,8.14698705]
[1742329059344,11.394537,123.68,123.67,0.05988705]
[1742329062243,48.741337,123.68,123.67,0.05988705]
[1742329064149,40.654537,123.68,123.64,274.8091]
[1742329064347,42.765037,123.68,123.64,274.8091]
[1742329064548,42.765037,123.68,123.65,8.0886]
[1742329064850,42.765037,123.68,123.64,266.72]
[1742329065049,42.765037,123.68,123.65,8.0886]
[1742329065348,42.765037,123.68,123.64,266.72]
[1742329065549,50.852137,123.68,123.66,8.0878]
[1742329069244,42.765037,123.68,123.64,266.72]
[1742329069449,11.394537,123.66,123.6,307.454537]
[1742329069750,11.394537,123.65,123.6,307.454537]
[1742329069952,0.05775455,123.64,123.63,8.0897]
[1742329071042,0.05775455,123.64,123.62,8.0905]
[1742329071448,0.05775455,123.64,123.6,307.454537]
[1742329072543,0.05775455,123.64,123.62,8.0903]
[1742329072743,0.05775455,123.64,123.6,307.454537]
[1742329073149,0.05775455,123.64,123.6,278.194537]
[1742329073351,11.394537,123.63,123.6,266.8]
[1742329073547,40.654537,123.62,123.57,51.7989738]
[1742329074050,0.05361489,123.61,123.57,51.7989738]
[1742329074352,0.05361489,123.61,123.58,8.0932]
[1742329075253,0.05361489,123.61,123.59,8.0925]
[1742329076347,0.05361489,123.61,123.6,8.092]
[1742329076956,0.05361489,123.61,123.6,19.486537]
[1742329077855,29.26,123.64,123.63,8.0901]
[1742329080860,29.26,123.64,123.62,8.14248505]
[1742329081058,29.26,123.64,123.62,0.05218505]
[1742329081362,29.26,123.64,123.63,8.0901]
[1742329081555,29.26,123.64,123.62,0.05218505]
[1742329082056,8.14834215,123.65,123.62,8.14258505]
[1742329082358,8.14834215,123.65,123.62,11.44672205]
[1742329082359,0.05934215,123.65,123.62,11.44672205]
[1742329083961,0.05934215,123.65,123.64,8.0894]
[1742329089567,0.05934215,123.65,123.64,19.483937]
[1742329090865,2.1072,123.71,123.69,8.0859]
[1742329091169,31.3672,123.71,123.67,11.394537]
[1742329091370,2.1072,123.71,123.67,11.394537]
[1742329091672,2.1072,123.71,123.68,8.0864]
[1742329091673,39.452,123.71,123.68,8.0864]
[1742329091862,39.452,123.71,123.67,11.394537]
[1742329092067,31.42377685,123.71,123.69,8.0861]
[1742329092270,31.42377685,123.71,123.68,0.0586422]
[1742329092670,31.42377685,123.71,123.69,8.0859]
[1742329093472,31.42377685,123.71,123.68,0.0586422]
[1742329093875,31.42377685,123.71,123.69,8.0859]
[1742329094073,31.42377685,123.71,123.68,0.0586422]
[1742329094674,31.42377685,123.71,123.69,8.0861]
[1742329095274,2.16377685,123.71,123.69,8.0861]
[1742329095476,31.42377685,123.71,123.69,8.0861]
[1742329095876,39.50857685,123.71,123.69,8.0861]
[1742329096076,42.81831385,123.71,123.68,0.0586422]
[1742329096666,11.394537,123.69,123.68,0.0586422]
[1742329096874,40.634537,123.69,123.63,11.394537]
[1742329097175,11.394537,123.68,123.63,11.394537]
[1742329097376,37.3278,123.67,123.63,11.394537]
[1742329097972,0.05792633,123.66,123.64,8.1510156]
[1742329098180,0.05792633,123.66,123.64,0.0622156]
[1742329098576,0.05792633,123.66,123.65,8.0887]
[1742329099976,0.05792633,123.66,123.64,19.5457526]
[1742329102880,8.14602633,123.66,123.64,19.5457526]
[1742329103775,8.14602633,123.66,123.64,11.4567526]
[1742329103976,8.0887,123.65,123.64,11.4567526]
[1742329104178,0.05792633,123.66,123.64,11.4567526]
[1742329104679,8.14652633,123.66,123.64,0.0622156]
[1742329105380,0.05792633,123.66,123.64,8.1514156]
[1742329105581,0.05792633,123.66,123.64,0.0622156]
[1742329106779,0.05792633,123.66,123.65,8.0887]
[1742329106985,0.05792633,123.66,123.65,19.483237]
[1742329109785,0.05792633,123.66,123.65,8.0887]
[1742329115296,0.05792633,123.66,123.65,19.483237]
[1742329116090,2.633e-05,123.66,123.65,19.483237]
[1742329124805,2.633e-05,123.66,123.65,286.283237]
[1742329130797,2.1823,123.72,123.65,278.194537]
[1742329131002,2.1823,123.72,123.69,11.394537]
[1742329131300,2.1823,123.72,123.71,8.0848]
[1742329135605,0.06100667,123.73,123.72,8.0842]
[1742329136112,0.06100667,123.73,123.72,48.698737]
[1742329136515,6.67e-06,123.73,123.72,48.698737]
[1742329136912,33.4667,123.79,123.77,8.0806]
[1742329137108,4.2467,123.79,123.77,8.0806]
[1742329137309,4.2467,123.79,123.76,11.394537]
[1742329137512,4.2467,123.79,123.75,11.394537]
[1742329137914,0.06012953,123.78,123.76,0.05356645]
[1742329139116,11.45466653,123.78,123.76,0.05356645]
[1742329139313,11.394537,123.77,123.76,0.05356645]
[1742329140016,19.475437,123.77,123.76,0.05356645]
[1742329141111,8.0809,123.77,123.76,0.05356645]
[1742329144619,19.475437,123.77,123.76,0.05356645]
[1742329145721,11.394537,123.77,123.71,266.78]
[1742329146022,4.2467,123.79,123.71,266.78]
[1742329146023,11.394537,123.75,123.71,266.78]
[1742329146221,29.2,123.74,123.71,266.78]
[1742329146623,8.084,123.73,123.71,266.78]
[1742329146824,8.084,123.73,123.71,266.83825454]
[1742329147120,8.0839,123.73,123.71,266.83825454]
[1742329149426,8.0839,123.73,123.71,274.92275454]
[1742329149820,37.33648943,123.74,123.71,274.92275454]
[1742329150226,29.25328943,123.74,123.71,274.92275454]
[1742329151025,8.0836,123.73,123.71,274.92275454]
[1742329155525,29.25328943,123.74,123.71,266.83825454]
[1742329155732,29.25328943,123.74,123.72,11.394537]
[1742329156122,37.33638943,123.74,123.72,11.394537]
[1742329156435,29.25328943,123.74,123.72,11.394537]
[1742329156629,29.25328943,123.74,123.72,19.478137]
[1742329157630,37.33648943,123.74,123.72,19.478137]
[1742329159037,8.0835,123.73,123.72,11.394537]
[1742329160238,8.0842,123.72,123.71,266.83825454]
[1742329161233,8.0839,123.73,123.71,266.83825454]
[1742329161434,8.0839,123.73,123.71,274.92295454]
[1742329161743,29.25328943,123.74,123.71,266.83825454]
[1742329161945,29.25328943,123.74,123.73,8.0835]
[1742329162636,0.05328943,123.74,123.73,8.0835]
[1742329163434,0.05328943,123.74,123.73,19.478037]
[1742329165046,39.323,123.79,123.76,8.0811]
[1742329165242,37.2802,123.79,123.76,8.0811]
[1742329165446,29.2,123.79,123.75,11.394537]
[1742329165644,48.673837,123.8,123.75,11.394537]
[1742329165846,8.08,123.79,123.75,11.394537]
[1742329166045,8.08,123.79,123.74,40.594537]
[1742329166248,0.0597505,123.78,123.76,0.06063612]
[1742329166849,11.394537,123.77,123.76,0.06063612]
[1742329167351,19.475437,123.77,123.76,0.06063612]
[1742329170453,11.394537,123.77,123.76,0.06063612]
[1742329171557,19.475437,123.77,123.76,0.06063612]
[1742329172761,11.394537,123.77,123.76,0.06063612]
[1742329173455,19.475437,123.77,123.76,0.06063612]
[1742329175161,21.668637,123.77,123.76,0.06063612]
[1742329175458,23.773637,123.77,123.76,0.06063612]
[1742329178048,25.924537,123.77,123.76,3.612e-05]
[1742329178254,8.0838,123.73,123.68,22.5389738]
[1742329178554,11.394537,123.73,123.68,22.5389738]
[1742329178754,8.0844,123.72,123.7,8.0853]
[1742329179359,8.14656875,123.72,123.7,8.14147952]
[1742329181059,0.06216875,123.72,123.7,8.14147952]
[1742329183766,8.14636875,123.72,123.7,8.14147952]
[1742329185761,0.06216875,123.72,123.7,8.14147952]
[1742329186159,0.06216875,123.72,123.71,8.0848]
[1742329187054,0.06216875,123.72,123.71,19.479337]
[1742329202679,6.875e-05,123.72,123.71,19.479337]
[1742329202873,29.18,123.78,123.71,11.394537]
[1742329203072,37.2604,123.78,123.74,11.394537]
[1742329203281,29.18,123.78,123.74,11.394537]
[1742329204080,0.05916805,123.77,123.75,0.05995366]
[1742329204777,40.574537,123.76,123.75,0.05995366]
[1742329205879,48.656137,123.76,123.75,0.05995366]
[1742329206379,29.18,123.76,123.75,0.05995366]
[1742329206680,29.18,123.76,123.75,8.14215366]
[1742329206881,0.05916805,123.77,123.75,0.05995366]
[1742329207582,29.18,123.76,123.75,0.05995366]
[1742329208278,40.574537,123.76,123.75,0.05995366]
[1742329208879,48.656137,123.76,123.75,0.05995366]
[1742329223790,40.574537,123.76,123.68,11.394537]
[1742329224089,40.574537,123.76,123.67,15.2275368]
[1742329224090,11.394537,123.73,123.67,11.1444368]
[1742329224286,11.394537,123.71,123.68,8.0863]
[1742329224482,19.479937,123.71,123.68,8.0863]
[1742329224886,11.44932545,123.71,123.68,8.14623547]
[1742329225091,8.0858,123.7,123.68,8.14623547]
[1742329225293,29.16,123.7,123.68,0.05993547]
[1742329225493,40.554537,123.7,123.68,0.05993547]
[1742329225688,625.7,123.69,123.65,17.85119987]
[1742329225888,11.394537,123.66,123.64,223.84214242]
[1742329226092,29.16,123.65,123.64,5.13653559]
[1742329226298,37.2487,123.65,123.64,5.13653559]
[1742329227295,29.16,123.65,123.63,0.0592225]
[1742329227690,11.394537,123.64,123.63,0.0592225]
[1742329228089,40.574537,123.64,123.63,0.0592225]
[1742329228290,11.394537,123.64,123.63,0.0592225]
[1742329228488,40.574537,123.64,123.63,0.0592225]
[1742329228895,83.93227063,123.64,123.63,0.0592225]
[1742329229692,72.53773363,123.64,123.63,0.0592225]
[1742329230299,29.18,123.65,123.63,0.0592225]
[1742329235109,29.18,123.65,123.63,8.1488225]
[1742329235494,29.18,123.65,123.63,0.0592225]
[1742329235699,29.23709328,123.66,123.63,0.0592225]
[1742329235905,29.23709328,123.66,123.64,8.0889]
[1742329237804,97.08414685,123.65,123.62,11.394537]
[1742329238900,97.08414685,123.65,123.64,8.0891]
[1742329239105,97.08414685,123.65,123.62,11.394537]
[1742329239701,31.35029443,123.65,123.62,11.394537]
[1742329239908,31.35029443,123.65,123.64,19.483637]
[1742329240109,9.443e-05,123.65,123.64,19.483637]
[1742329240507,9.443e-05,123.65,123.64,286.363637]
[1742329240807,9.443e-05,123.65,123.64,278.274537]
[1742329241505,9.443e-05,123.65,123.64,286.363637]
[1742329241706,0.05709328,123.66,123.64,278.274537]
[1742329242011,0.05709328,123.66,123.65,8.0887]
[1742329242508,0.05709328,123.66,123.65,13.7859685]
[1742329242710,9.328e-05,123.66,123.65,13.7859685]
[1742329242912,9.328e-05,123.66,123.65,19.483237]
[1742329250916,9.328e-05,123.66,123.65,8.0887]
[1742329253224,9.328e-05,123.66,123.64,275.02986184]
[1742329253519,9.328e-05,123.66,123.64,266.94066184]
[1742329253725,40.57463028,123.66,123.64,266.94066184]
[1742329254025,48.66303028,123.66,123.64,0.06066184]
[1742329254422,41.36244402,123.65,123.64,0.06066184]
[1742329254725,60.84568102,123.65,123.64,0.06066184]
[1742329256122,49.45114402,123.65,123.64,0.06066184]
[1742329256426,41.36244402,123.65,123.64,0.06066184]
[1742329256628,41.36244402,123.65,123.63,8.09]
[1742329256629,315.60415567,123.65,123.63,8.09]
[1742329257119,114.73769453,123.65,123.63,8.09]
[1742329258229,203.87967264,123.64,123.63,8.09]
[1742329258427,203.87967264,123.64,123.61,11.394537]
[1742329258931,143.91769453,123.64,123.62,8.0903]
[1742329259531,152.00719453,123.64,123.62,8.0903]
[1742329260032,152.00719453,123.64,123.61,19.485537]
[1742329260227,97.49275477,123.63,123.61,19.485537]
[1742329260727,97.55493865,123.63,123.61,19.485537]
[1742329260926,97.55493865,123.63,123.61,8.091]
[1742329261825,41.38737457,123.62,123.6,278.234537]
[1742329262430,41.38737457,123.62,123.61,8.0914]
[1742329262829,41.38737457,123.62,123.6,278.234537]
[1742329263331,41.38737457,123.62,123.6,266.84]
[1742329263528,70.56737457,123.62,123.6,274.932]
[1742329263829,70.56737457,123.62,123.6,266.84]
[1742329264127,78.65837457,123.62,123.6,266.84]
[1742329264328,78.65837457,123.62,123.59,8.0923]
[1742329264534,81.96191157,123.62,123.59,8.0923]
[1742329264728,81.96191157,123.62,123.58,8.093]
[1742329264729,90.05321157,123.62,123.58,8.093]
[1742329265336,90.05321157,123.62,123.56,278.274537]
[1742329265628,105.20259587,123.61,123.56,278.274537]
[1742329265833,29.23293499,123.6,123.59,8.0927]
[1742329267133,265.68878277,123.6,123.59,8.0927]
[1742329269037,236.50878277,123.6,123.59,8.0927]
[1742329269438,108.31091395,123.6,123.59,8.0927]
[1742329270740,41.43201753,123.6,123.59,8.0927]
[1742329273034,30.28523444,123.6,123.59,8.0927]
[1742329275039,0.05293499,123.6,123.59,8.0927]
[1742329286144,96.90934069,123.6,123.59,8.0927]
[1742329287952,202.89003843,123.6,123.59,8.0927]
[1742329291258,202.89003843,123.6,123.59,19.487237]
[1742329293459,41.17094475,123.6,123.59,19.487237]
[1742329297162,29.99555498,123.6,123.59,19.487237]
[1742329299464,0.05293499,123.6,123.59,19.487237]
[1742329301066,3.499e-05,123.6,123.59,19.487237]
[1742329303166,44.70155909,123.62,123.61,8.0914]
[1742329303366,44.70155909,123.62,123.61,19.485937]
[1742329303569,11.17538977,123.62,123.61,19.485937]
[1742329303765,8.977e-05,123.62,123.61,19.485937]
[1742329303962,110.59536005,123.63,123.62,8.0907]
[1742329304272,110.59536005,123.63,123.62,19.485237]
[1742329305359,29.09331535,123.63,123.62,19.485237]
[1742329306970,29.09331535,123.63,123.62,8.0907]
[1742329307564,29.09331535,123.63,123.61,275.08609297]
[1742329307768,29.09331535,123.63,123.61,266.99509297]
[1742329307965,0.05861819,123.64,123.61,266.99509297]
[1742329309171,0.05861819,123.64,123.62,8.0902]
[1742329309970,8.14801819,123.64,123.61,275.08609297]
[1742329310273,65.57363791,123.63,123.61,275.08609297]
[1742329310673,65.57363791,123.63,123.62,8.0907]
[1742329312272,108.89570192,123.63,123.62,8.0907]
[1742329314475,108.89570192,123.63,123.61,275.08619297]
[1742329314771,116.98580192,123.63,123.61,275.08619297]
[1742329315074,146.14580192,123.63,123.61,275.08619297]
[1742329315776,138.05570192,123.63,123.62,8.0907]
[1742329316477,138.05570192,123.63,123.61,275.08609297]
[1742329316681,28.71779048,123.62,123.61,275.08609297]
[1742329318675,94.35698313,123.62,123.61,275.08609297]
[1742329319477,102.44768313,123.62,123.61,266.99509297]
[1742329319675,102.44768313,123.62,123.61,0.05509297]
[1742329320274,8.092,123.61,123.57,278.314537]